fUSD/lending_fUSD_20250620
["ID","MTS","AMOUNT","RATE_DAILY","PERIOD"]
[366746467,1750429832120,-650.79196675,0.00026348,14]
[366746468,1750429832131,-154.0945543,0.0002635,2]
[366746469,1750429832141,-166.6,0.00026376,2]
[366746470,1750429832153,-1570.5588128,0.00026427,5]
[366746471,1750429832164,-151.0,0.00026429,2]
[366746472,1750429832174,-12091.39099018,0.00026435,2]
[366746473,1750429832184,-891.627,0.00026435,13]
[366746474,1750429832194,-6034.213,0.00026443,2]
[366746475,1750429832204,-1000.0,0.00026443,2]
[366746476,1750429832215,-300.0,0.00026444,2]
[366746477,1750429832225,-62903.047,0.00026445,2]
[366746478,1750429832239,-828.558961,0.0002645,8]
[366746479,1750429832250,-490.0,0.00026543,4]
[366746480,1750429832260,-322.80600732,0.00026543,4]
[366746481,1750429832270,-490.0,0.00026543,4]
[366746482,1750429832280,-490.0,0.00026543,4]
[366746483,1750429832295,-490.0,0.00026543,4]
[366746484,1750429832306,-490.0,0.00026543,4]
[366746485,1750429832316,-517.14,0.00026543,4]
[366746487,1750429832326,-493.44,0.00026543,4]
[366746489,1750429832337,-500.0,0.00026543,4]
[366746492,1750429832347,-1094.19,0.00026543,4]
[366746494,1750429832358,-490.0,0.00026543,4]
[366746496,1750429832368,-490.0,0.00026543,4]
[366746498,1750429832377,-490.0,0.00026543,4]
[366746500,1750429832387,-490.0,0.00026543,4]
[366746501,1750429832397,-490.0,0.00026544,4]
[366746502,1750429832409,-150.0,0.00026611,2]
[366746503,1750429832419,-150.0,0.00026611,2]
[366746504,1750429832428,-150.0,0.00026639,2]
[366746505,1750429832438,-150.0,0.0002664,2]
[366746506,1750429832447,-150.0,0.00026693,2]
[366746507,1750429832457,-150.0,0.00026697,2]
[366746508,1750429832468,-150.0,0.00026697,2]
[366746509,1750429832478,-900.0,0.000267,9]
[366746511,1750429832488,-150.0,0.00026706,2]
[366746513,1750429832498,-150.0,0.00026709,2]
[366746515,1750429832508,-150.0,0.00026711,2]
[366746517,1750429832518,-3575.0796636,0.00026715,2]
[366746519,1750429832528,-532.76190616,0.00026715,2]
[366746521,1750429832538,-2500.0,0.00026716,2]
[366746523,1750429832548,-557.07546543,0.00026716,11]
[366746525,1750429832558,-176.35465666,0.00026719,2]
[366746527,1750429832568,-150.0,0.00026723,2]
[366746529,1750429832578,-150.0,0.00026729,2]
[366746531,1750429832588,-150.0,0.0002673,2]
[366746533,1750429832598,-608.63684678,0.0002673,2]
[366746535,1750429832608,-150.0,0.00026742,2]
[366746537,1750429832618,-150.0,0.00026743,2]
[366746539,1750429832628,-150.0,0.00026749,2]
[366746541,1750429832638,-150.0,0.00026759,2]
[366746543,1750429832648,-150.0,0.00026762,2]
[366746545,1750429832659,-150.0,0.00026762,2]
[366746547,1750429832668,-679.19609332,0.00026765,2]
[366746549,1750429832678,-211.0,0.0002677,2]
[366746552,1750429832688,-1000.0,0.00026773,2]
[366746554,1750429832698,-150.0,0.00026778,2]
[366746556,1750429832708,-150.0,0.00026784,2]
[366746558,1750429832718,-150.0,0.00026786,2]
[366746560,1750429832728,-150.0,0.00026787,2]
[366746562,1750429832739,-150.0,0.00026793,2]
[366746564,1750429832755,-640.74,0.000268,2]
[366746566,1750429832766,-1900.0,0.000268,9]
[366746568,1750429832776,-150.0,0.00026803,2]
[366746570,1750429832786,-150.0,0.00026807,2]
[366746572,1750429832797,-367.50989143,0.00026815,2]
[366746574,1750429832807,-500.0,0.00026815,2]
[366746576,1750429832817,-500.0,0.00026815,2]
[366746579,1750429832828,-489.78585071,0.00026815,2]
[366746580,1750429832839,-500.0,0.00026815,2]
[366746583,1750429832849,-500.0,0.00026815,2]
[366746585,1750429832859,-500.0,0.00026815,2]
[366746587,1750429832869,-500.0,0.00026815,2]
[366746589,1750429832880,-500.0,0.00026815,2]
[366746591,1750429832890,-500.0,0.00026815,2]
[366746593,1750429832900,-500.0,0.00026815,2]
[366746595,1750429832911,-581.74988074,0.00026815,2]
[366746597,1750429832921,-410.59964341,0.00026815,2]
[366746599,1750429832931,-500.0,0.00026815,2]
[366746601,1750429832941,-500.0,0.00026815,2]
[366746603,1750429832951,-645.31834994,0.00026815,2]
[366746605,1750429832962,-500.0,0.00026815,2]
[366746607,1750429832972,-150.0,0.00026815,2]
[366746609,1750429832982,-490.0,0.00026815,4]
[366746611,1750429832993,-490.0,0.00026815,4]
[366746613,1750429833002,-490.0,0.00026815,4]
[366746615,1750429833012,-578.12,0.00026815,4]
[366746616,1750429833023,-539.65,0.00026815,4]
[366746617,1750429833032,-293.87,0.00026815,4]
[366746618,1750429833043,-1071.67,0.00026815,4]
[366746619,1750429833053,-490.0,0.00026815,4]
[366746620,1750429833063,-490.0,0.00026815,4]
[366746621,1750429833073,-490.0,0.00026815,4]
[366746622,1750429833085,-558.65,0.00026815,4]
[366746623,1750429833095,-490.0,0.00026815,4]
[366746624,1750429833106,-520.92,0.00026815,4]
[366746625,1750429833116,-691.15,0.00026815,4]
[366746626,1750429833127,-490.0,0.00026815,4]
[366746627,1750429833137,-490.0,0.00026815,4]
[366746628,1750429833148,-490.0,0.00026815,4]
[366746629,1750429833163,-490.0,0.00026815,4]
[366746630,1750429833174,-490.0,0.00026815,4]
[366746631,1750429833193,-1000.0,0.00026815,2]
[366746632,1750429833207,-603.44,0.00026815,4]
[366746633,1750429833218,-697.35,0.00026815,4]
[366746634,1750429833229,-606.3,0.00026815,4]
[366746635,1750429833242,-490.0,0.00026815,4]
[366746636,1750429833253,-890.35,0.00026815,4]
[366746637,1750429833264,-538.97,0.00026815,4]
[366746638,1750429833274,-490.0,0.00026815,4]
[366746639,1750429833284,-11676.22,0.00026815,4]
[366746640,1750429833295,-490.0,0.00026815,4]
[366746641,1750429833305,-490.0,0.00026815,4]
[366746642,1750429833316,-490.0,0.00026815,4]
[366746643,1750429833327,-490.0,0.00026815,4]
[366746644,1750429833337,-490.0,0.00026815,4]
[366746645,1750429833347,-490.0,0.00026816,4]
[366746646,1750429833357,-490.0,0.00026816,4]
[366746647,1750429833367,-490.0,0.00026816,4]
[366746648,1750429833378,-490.0,0.00026816,4]
[366746649,1750429833388,-490.0,0.00026816,4]
[366746650,1750429833398,-493.33480674,0.00026816,4]
[366746651,1750429833411,-638.62965706,0.00026816,4]
[366746652,1750429833422,-490.0,0.00026816,4]
[366746653,1750429833432,-590.80518899,0.00026816,4]
[366746654,1750429833443,-501.01013147,0.00026816,4]
[366746655,1750429833453,-490.0,0.00026816,4]
[366746656,1750429833463,-490.0,0.00026816,4]
[366746657,1750429833473,-490.0,0.00026816,4]
[366746658,1750429833483,-490.0,0.00026816,4]
[366746659,1750429833494,-490.0,0.00026816,4]
[366746660,1750429833504,-490.0,0.00026816,4]
[366746661,1750429833515,-490.0,0.00026816,4]
[366746662,1750429833525,-490.0,0.00026816,4]
[366746663,1750429833535,-490.0,0.00026816,4]
[366746664,1750429833546,-490.0,0.00026816,4]
[366746665,1750429833867,-490.0,0.00026816,4]
[366746666,1750429833878,-490.0,0.00026816,4]
[366746667,1750429833889,-490.0,0.00026816,4]
[366746668,1750429833899,-588.01,0.00026816,4]
[366746669,1750429833910,-490.36,0.00026816,4]
[366746670,1750429833921,-490.0,0.00026816,4]
[366746671,1750429833931,-490.0,0.00026816,4]
[366746672,1750429833942,-490.0,0.00026816,4]
[366746673,1750429833952,-490.0,0.00026816,4]
[366746674,1750429833963,-490.0,0.00026816,4]
[366746675,1750429833973,-490.0,0.00026816,4]
[366746676,1750429833984,-630.83,0.00026816,4]
[366746677,1750429833994,-490.0,0.00026816,4]
[366746678,1750429834004,-490.24,0.00026816,4]
[366746679,1750429834014,-490.0,0.00026816,4]
[366746680,1750429834024,-490.0,0.00026816,4]
[366746681,1750429834033,-490.0,0.00026816,4]
[366746682,1750429834044,-575.29,0.00026816,4]
[366746683,1750429834054,-490.0,0.00026816,4]
[366746684,1750429834064,-490.0,0.00026816,4]
[366746685,1750429834074,-490.0,0.00026816,4]
[366746686,1750429834084,-490.0,0.00026816,4]
[366746687,1750429834094,-490.0,0.00026816,4]
[366746688,1750429834104,-490.0,0.00026816,4]
[366746689,1750429834114,-490.0,0.00026816,4]
[366746690,1750429834124,-490.0,0.00026816,4]
[366746691,1750429834134,-490.0,0.00026816,4]
[366746692,1750429834144,-490.0,0.00026816,4]
[366746693,1750429834154,-490.0,0.00026816,4]
[366746694,1750429834164,-490.0,0.00026816,4]
[366746695,1750429834175,-490.0,0.00026816,4]
[366746696,1750429834185,-490.0,0.00026816,4]
[366746697,1750429834195,-490.0,0.00026816,4]
[366746698,1750429834205,-490.0,0.00026816,4]
[366746699,1750429834215,-490.0,0.00026816,4]
[366746700,1750429834225,-490.0,0.00026816,4]
[366746701,1750429834240,-490.0,0.00026816,4]
[366746702,1750429834250,-822.51,0.00026816,4]
[366746703,1750429834260,-490.0,0.00026816,2]
[366746704,1750429834271,-539.54,0.00026816,4]
[366746705,1750429834282,-490.0,0.00026816,4]
[366746706,1750429834292,-490.0,0.00026816,4]
[366746707,1750429834303,-55.88969023,0.00026816,4]
[366746708,1750429834501,-434.11030977,0.00026816,4]
[366746709,1750429834513,-457.45839998,0.00026816,4]
[366746710,1750429834525,-364.31109957,0.00026816,4]
[366746711,1750429834535,-506.93505818,0.00026816,4]
[366746712,1750429834548,-171.78494182,0.00026816,4]
[366746713,1750429834558,-212.4812138,0.00026816,4]
[366746714,1750429834571,-11.13974349,0.00026816,4]
[366746715,1750429834582,-406.60232267,0.00026816,4]
[366746716,1750429834594,-83.39767733,0.00026816,4]
[366746717,1750429834604,-490.0,0.00026816,4]
[366746718,1750429834616,-482.53229189,0.00026816,4]
[366746719,1750429834628,-7.46770811,0.00026816,4]
[366746720,1750429834640,-490.0,0.00026816,4]
[366746721,1750429834650,-490.0,0.00026816,4]
[366746722,1750429834661,-490.0,0.00026816,4]
[366746723,1750429834671,-599.02944894,0.00026816,4]
[366746724,1750429834683,-9.91055106,0.00026816,4]
[366746725,1750429834694,-490.0,0.00026816,4]
[366746726,1750429834704,-444.6697248,0.00026816,4]
[366746727,1750429834720,-515.81,0.00026815,4]
[366746728,1750429834730,-45.3302752,0.00026816,4]
[366746729,1750429834740,-77.18369425,0.00026816,4]
[366746730,1750429834752,-412.81630575,0.00026816,4]
[366746731,1750429834763,-410.16931739,0.00026816,4]
[366746732,1750429834775,-151.18068261,0.00026816,4]
[366746733,1750429834785,-490.0,0.00026816,4]
[366746734,1750429834794,-490.0,0.00026816,4]
[366746735,1750429834804,-653.3,0.00026816,4]
[366746736,1750429834814,-490.0,0.00026816,4]
[366746737,1750429834825,-490.0,0.00026816,4]
[366746738,1750429834836,-490.0,0.00026816,4]
[366746739,1750429834846,-490.0,0.00026816,4]
[366746740,1750429834857,-490.0,0.00026816,4]
[366746741,1750429834867,-490.0,0.00026816,4]
[366746742,1750429834878,-490.0,0.00026816,4]
[366746743,1750429834888,-490.0,0.00026816,4]
[366746744,1750429834898,-5.49674119,0.00026816,4]
[366746746,1750429837505,-2525.89238975,0.00025765,2]
[366746747,1750429837518,-1176.12,0.00025765,2]
[366746748,1750429837529,-1924.20000017,0.00025765,2]
[366746749,1750429837743,-674.06081139,0.00025765,2]
[366746750,1750429837755,-6657.25246596,0.00025765,2]
[366746902,1750429839626,-395.92311807,0.00025765,2]
[366746913,1750429839718,-10679.31057521,0.00025765,2]
[366746915,1750429839728,-1293.2782,0.0002677,2]
[366746917,1750429839738,-490.0,0.00026815,4]
[366746919,1750429839748,-490.0,0.00026815,4]
[366746921,1750429839758,-490.0,0.00026815,4]
[366746923,1750429839768,-490.0,0.00026815,4]
[366746925,1750429839778,-490.0,0.00026815,4]
[366746927,1750429839789,-490.0,0.00026815,4]
[366746929,1750429839798,-490.0,0.00026815,4]
[366746931,1750429839809,-484.50325881,0.00026816,4]
[366746933,1750429839819,-462.04143343,0.00026816,4]
[366746935,1750429839828,-528.02,0.00026816,4]
[366746937,1750429839837,-602.5,0.00026816,4]
[366746939,1750429839846,-490.0,0.00026816,4]
[366746941,1750429839856,-490.0,0.00026816,4]
[366746943,1750429839867,-490.0,0.00026816,4]
[366746945,1750429839876,-594.16,0.00026816,4]
[366746947,1750429839887,-490.0,0.00026816,4]
[366746949,1750429839897,-490.0,0.00026816,4]
[366746951,1750429839907,-961.79,0.00026816,4]
[366746953,1750429839918,-490.0,0.00026816,4]
[366746955,1750429839928,-490.0,0.00026816,4]
[366746957,1750429839938,-490.0,0.00026816,4]
[366746959,1750429839948,-490.0,0.00026816,4]
[366746961,1750429839958,-490.0,0.00026816,4]
[366746962,1750429839968,-490.0,0.00026816,4]
[366746965,1750429840000,-490.0,0.00026816,4]
[366746966,1750429840010,-490.0,0.00026816,4]
[366746969,1750429840020,-490.0,0.00026816,4]
[366746971,1750429840030,-394.75387181,0.00026816,4]
[366746973,1750429840039,-490.0,0.00026816,4]
[366746974,1750429840049,-706.49,0.00026816,4]
[366746976,1750429840059,-490.0,0.00026816,4]
[366746978,1750429840068,-490.0,0.00026816,4]
[366746980,1750429840078,-490.0,0.00026816,4]
[366746982,1750429840088,-490.0,0.00026816,4]
[366746984,1750429840098,-490.0,0.00026816,4]
[366746987,1750429840108,-490.0,0.00026816,4]
[366746989,1750429840118,-490.0,0.00026816,4]
[366746991,1750429840127,-490.0,0.00026816,4]
[366746993,1750429840137,-490.0,0.00026816,4]
[366746995,1750429840146,-490.0,0.00026816,4]
[366746997,1750429840156,-490.0,0.00026816,4]
[366747000,1750429840166,-490.0,0.00026816,4]
[366747002,1750429840177,-490.0,0.00026816,4]
[366747004,1750429840186,-490.0,0.00026816,4]
[366747005,1750429840197,-490.0,0.00026816,4]
[366747008,1750429840207,-490.0,0.00026816,4]
[366747010,1750429840216,-575.98,0.00026816,4]
[366747012,1750429840227,-490.0,0.00026816,4]
[366747014,1750429840240,-895.4,0.00026816,4]
[366747016,1750429840249,-490.0,0.00026816,4]
[366747018,1750429840259,-490.0,0.00026816,4]
[366747020,1750429840269,-484.82,0.00026816,4]
[366747022,1750429840278,-490.0,0.00026816,4]
[366747024,1750429840288,-490.0,0.00026816,4]
[366747026,1750429840298,-490.0,0.00026816,4]
[366747028,1750429840308,-490.0,0.00026816,4]
[366747030,1750429840319,-490.0,0.00026816,4]
[366747032,1750429840329,-753.92,0.00026816,4]
[366747034,1750429840338,-490.0,0.00026816,4]
[366747036,1750429840349,-490.0,0.00026816,4]
[366747038,1750429840358,-490.0,0.00026816,4]
[366747040,1750429840368,-268.63,0.00026816,4]
[366747042,1750429840377,-490.0,0.00026816,4]
[366747044,1750429840387,-2067.11,0.00026816,4]
[366747046,1750429840398,-490.0,0.00026816,4]
[366747048,1750429840407,-490.0,0.00026816,4]
[366747050,1750429840417,-652.01,0.00026816,4]
[366747052,1750429840427,-3120.03,0.00026816,4]
[366747054,1750429840437,-496.47,0.00026816,4]
[366747056,1750429840447,-490.0,0.00026816,4]
[366747058,1750429840457,-490.0,0.00026816,4]
[366747060,1750429840468,-909.84,0.00026816,4]
[366747062,1750429840478,-490.0,0.00026816,4]
[366747064,1750429840488,-490.0,0.00026816,4]
[366747066,1750429840499,-490.0,0.00026816,4]
[366747068,1750429840508,-490.0,0.00026816,4]
[366747070,1750429840518,-490.0,0.00026816,4]
[366747072,1750429840528,-1395.56,0.00026816,4]
[366747074,1750429840537,-490.0,0.00026816,4]
[366747076,1750429840547,-490.0,0.00026816,4]
[366747078,1750429840558,-748.8,0.00026816,4]
[366747080,1750429840568,-490.0,0.00026816,4]
[366747082,1750429840578,-490.0,0.00026816,4]
[366747084,1750429840588,-490.0,0.00026816,4]
[366747087,1750429840598,-490.0,0.00026816,4]
[366747089,1750429840608,-534.68,0.00026816,4]
[366747091,1750429840618,-490.0,0.00026816,4]
[366747093,1750429840627,-490.0,0.00026816,4]
[366747094,1750429840637,-539.27,0.00026816,4]
[366747097,1750429840647,-490.0,0.00026816,4]
[366747098,1750429840656,-490.0,0.00026816,4]
[366747101,1750429840668,-490.0,0.00026816,4]
[366747102,1750429840677,-490.0,0.00026816,4]
[366747105,1750429840688,-490.0,0.00026816,4]
[366747107,1750429840698,-490.0,0.00026816,4]
[366747108,1750429840707,-490.0,0.00026816,4]
[366747111,1750429840718,-490.0,0.00026816,4]
[366747113,1750429840728,-490.0,0.00026816,4]
[366747115,1750429840738,-490.0,0.00026816,4]
[366747117,1750429840748,-5126.19,0.00026816,4]
[366747119,1750429840757,-490.0,0.00026816,4]
[366747121,1750429840767,-570.41001182,0.00026816,4]
[366747123,1750429840778,-490.0,0.00026816,4]
[366747125,1750429840787,-573.52,0.00026816,4]
[366747127,1750429840797,-755.77,0.00026816,4]
[366747129,1750429840807,-490.0,0.00026816,4]
[366747131,1750429840816,-684.8,0.00026816,4]
[366747132,1750429840826,-512.17,0.00026816,4]
[366747134,1750429840836,-1989.3,0.00026816,4]
[366747137,1750429840845,-490.0,0.00026816,4]
[366747139,1750429840855,-490.0,0.00026816,4]
[366747141,1750429840865,-490.0,0.00026816,4]
[366747143,1750429840875,-490.0,0.00026816,4]
[366747145,1750429840885,-490.0,0.00026816,4]
[366747147,1750429840895,-490.0,0.00026816,4]
[366747149,1750429840905,-2037.15,0.00026816,4]
[366747151,1750429840917,-490.0,0.00026816,4]
[366747153,1750429840926,-1645.64,0.00026816,4]
[366747155,1750429840935,-814.9,0.00026816,4]
[366747157,1750429840945,-490.0,0.00026816,4]
[366747159,1750429840954,-490.0,0.00026816,4]
[366747161,1750429840963,-1448.7,0.00026816,4]
[366747163,1750429840972,-490.0,0.00026816,4]
[366747165,1750429840981,-945.3,0.00026816,4]
[366747167,1750429840990,-490.0,0.00026816,4]
[366747169,1750429841000,-490.0,0.00026816,4]
[366747171,1750429841009,-490.0,0.00026816,4]
[366747173,1750429841019,-490.0,0.00026816,4]
[366747175,1750429841028,-490.0,0.00026816,4]
[366747177,1750429841037,-490.0,0.00026816,4]
[366747179,1750429841046,-474.57,0.00026816,4]
[366747181,1750429841056,-490.0,0.00026816,4]
[366747183,1750429841066,-1854.85,0.00026816,4]
[366747185,1750429841076,-490.0,0.00026816,4]
[366747187,1750429841086,-490.0,0.00026816,4]
[366747189,1750429841096,-490.0,0.00026816,4]
[366747191,1750429841105,-490.0,0.00026816,4]
[366747193,1750429841115,-490.0,0.00026817,4]
[366747195,1750429841124,-490.0,0.00026817,4]
[366747197,1750429841133,-490.0,0.00026817,4]
[366747199,1750429841143,-490.0,0.00026817,4]
[366747201,1750429841152,-493.44,0.00026817,4]
[366747203,1750429841163,-1094.19,0.00026817,4]
[366747205,1750429841172,-196.57,0.00026817,4]
[366747207,1750429841181,-490.0,0.00026817,4]
[366747209,1750429841191,-490.0,0.00026817,4]
[366747211,1750429841200,-490.0,0.00026817,4]
[366747212,1750429841210,-500.0,0.00026819,4]
[366747215,1750429841221,-1000.0,0.0002682,2]
[366747217,1750429841233,-150.0,0.00026826,2]
[366747219,1750429841242,-650.79196675,0.00026831,15]
[366747221,1750429841252,-150.0,0.00026843,2]
[366747223,1750429841261,-150.0,0.00026847,2]
[366747225,1750429841271,-150.0,0.00026851,2]
[366747226,1750429841281,-150.0,0.00026852,2]
[366747228,1750429841290,-150.0,0.00026852,2]
[366747230,1750429841300,-150.0,0.00026853,2]
[366747233,1750429841311,-150.0,0.00026853,2]
[366747234,1750429841322,-150.0,0.00026856,2]
[366747236,1750429841331,-150.0,0.00026858,2]
[366747239,1750429841341,-150.0,0.00026872,2]
[366747240,1750429841351,-150.0,0.00026877,2]
[366747242,1750429841361,-293.20436687,0.0002688,2]
[366747245,1750429841371,-158.31742902,0.0002688,2]
[366747247,1750429841381,-548.65324425,0.00026881,2]
[366747249,1750429841391,-162.33702518,0.00026882,2]
[366747251,1750429841400,-150.0,0.00026887,2]
[366747253,1750429841411,-150.0,0.0002689,2]
[366747254,1750429841421,-300.0,0.000269,16]
[366747256,1750429841430,-2900.0,0.000269,9]
[366747259,1750429841441,-150.0,0.00026902,2]
[366747260,1750429841451,-1000.0,0.00026913,2]
[366747262,1750429841460,-532.76190599,0.00026917,2]
[366747264,1750429841470,-150.0,0.00026918,2]
[366747266,1750429841481,-150.0,0.00026928,2]
[366747268,1750429841490,-1000.0,0.00026955,2]
[366747270,1750429841501,-787.576787,0.00026958,4]
[366747272,1750429841511,-159.46927,0.00026958,4]
[366747274,1750429841521,-714.978984,0.00026958,4]
[366747277,1750429841531,-1643.83501945,0.00026969,3]
[366747279,1750429841541,-834.11677829,0.00026969,3]
[366747281,1750429841551,-44383.5455252,0.0002697,3]
[366747283,1750429841561,-157.79,0.0002697,2]
[366747284,1750429841571,-157.79,0.0002697,2]
[366747286,1750429841580,-300.0,0.00026979,10]
[366747288,1750429841590,-300.0,0.00026979,10]
[366747290,1750429841599,-300.0,0.00026979,10]
[366747292,1750429841609,-666.0,0.00026979,2]
[366747294,1750429841618,-500.0,0.00026979,2]
[366747296,1750429841628,-186.97960028,0.00026979,2]
[366747298,1750429841637,-479.59696193,0.00026979,2]
[366747300,1750429841647,-500.0,0.00026979,2]
[366747302,1750429841657,-539.65,0.00026979,4]
[366747304,1750429841668,-539.65,0.00026979,4]
[366747305,1750429841677,-539.65,0.00026979,4]
[366747306,1750429841686,-1931.0,0.0002698,2]
[366747307,1750429841696,-6394.89089268,0.0002698,5]
[366747308,1750429841706,-143180.56145374,0.0002698,5]
[366747309,1750429841721,-1063.22332407,0.0002698,5]
[366747310,1750429841732,-252.22,0.0002698,5]
[366747311,1750429841755,-490.0,0.00026815,4]
[366747312,1750429841764,-661.90000246,0.0002698,5]
[366747313,1750429841775,-520.73426,0.0002698,5]
[366747314,1750429841787,-883.0,0.0002698,5]
[366747338,1750429842063,201.0,0.00022687,2]
[366747560,1750429844237,-490.0,0.00026815,4]
[366747562,1750429844247,-490.0,0.00026815,4]
[366747564,1750429844257,-490.0,0.00026815,4]
[366747566,1750429844267,-490.0,0.00026815,4]
[366747568,1750429844279,-1592.97657655,0.00026816,4]
[366747570,1750429844290,-1397.05342345,0.00026816,4]
[366747572,1750429844300,-2903.77699381,0.0002698,5]
[366747575,1750429844313,-1000.24936094,0.0002698,5]
[366747577,1750429844325,-396.4165668,0.0002698,5]
[366747579,1750429844337,-3297.5209031,0.0002698,5]
[366747582,1750429844353,-490.0,0.00026815,4]
[366747584,1750429844363,-1619.75398706,0.0002698,5]
[366747585,1750429844374,-1727.76850292,0.0002698,5]
[366747587,1750429844464,-476.0207654,0.0002698,5]
[366747588,1750429844477,-811.9000005,0.0002698,5]
[366747589,1750429844489,-635.716992,0.0002698,5]
[366747590,1750429844655,-655.65,0.0002698,5]
[366747591,1750429844668,-857.8,0.0002698,5]
[366747592,1750429844680,-10527.0,0.0002698,5]
[366747593,1750429844692,-527.67715,0.0002698,5]
[366747594,1750429844708,-207.21,0.00026815,4]
[366747595,1750429844718,-318.02283967,0.0002698,5]
[366747596,1750429844730,-1711.87058023,0.0002698,5]
[366747597,1750429844742,-6571.67763341,0.0002698,5]
[366747598,1750429844762,-832.99099953,0.0002698,5]
[366747605,1750429845547,-3930.43983076,0.0002698,5]
[366747606,1750429845631,-735.12,0.0002698,5]
[366747607,1750429845719,-618.92664017,0.0002698,5]
[366747608,1750429845732,-6319.99,0.0002698,5]
[366747609,1750429845803,-468.6,0.0002698,5]
[366747610,1750429845818,-454.20749541,0.0002698,5]
[366747622,1750430006002,200.0,0.00022506,2]
[366747632,1750430081517,285.0,0.00022687,2]
[366747636,1750430108138,4747.072339,7.945e-05,2]
[366747648,1750430151558,178.71,0.00020748,2]
[366747653,1750430277497,-3000000.0,0.00038258,30]
[366747655,1750430283461,300.0,0.0002538,120]
[366747656,1750430283532,300.0,0.00025614,120]
[366747657,1750430291389,-5000000.0,0.00038258,30]
[366747658,1750430295958,-5000000.0,0.00038258,30]
[366747660,1750430327756,-5000000.0,0.00038258,30]
[366747662,1750430358600,-5000000.0,0.00038258,30]
[366747667,1750430394586,-5000000.0,0.00038258,30]
[366747670,1750430415422,156.49,0.00013699,2]
[366747675,1750430518787,298.98,0.00025409,120]
[366747689,1750430631713,1949.0,0.00026,120]
[366747707,1750430815554,1253.0,0.00026,120]
[366747708,1750430818501,728.0,0.00026,120]
[366747713,1750430875607,1082.0,0.00026,120]
[366747714,1750430879499,470.0,0.00026,120]
[366747727,1750430935645,613.0,0.00026,120]
[366747736,1750430996175,739.0,0.00026,120]
[366747741,1750431025833,-250.0,0.00023422,2]
[366747742,1750431029923,-161.2844212,0.00023422,2]
[366747774,1750431032377,-570.55157139,0.00023422,2]
[366747777,1750431032395,-2622.244625,0.00023422,2]
[366747779,1750431032411,-590.62520021,0.00023422,2]
[366747783,1750431032450,-11533.30034011,0.00023422,2]
[366747785,1750431032466,-151.0,0.00023457,2]
[366747788,1750431032479,-250.0,0.00023522,2]
[366747790,1750431032493,-234.37328131,0.00023587,2]
[366747792,1750431032507,-202.0,0.00024351,2]
[366747793,1750431032521,-300.0,0.00024452,2]
[366747794,1750431032535,-164.82,0.000252,2]
[366747795,1750431032547,-2228.39,0.00025258,2]
[366747796,1750431032560,-200.0,0.00025264,2]
[366747797,1750431032574,-876.54991829,0.000253,12]
[366747798,1750431032594,-576.22,0.00025337,2]
[366747799,1750431032614,-168.0,0.00025338,7]
[366747800,1750431032629,-441.0,0.00025345,2]
[366747801,1750431032646,-200.0,0.00025349,7]